bitfinex/quotes_BTCUSD_20240721
["timestamp","ask_amount","ask_price","bid_price","bid_amount"]
[1721596255372,1.327743,67784.0,67781.0,0.0657]
[1721596255620,1.327743,67784.0,67781.0,0.002]
[1721596255621,1.90784895,67784.0,67781.0,0.002]
[1721596255819,1.90735408,67784.0,67781.0,0.002]
[1721596256160,2.24626478,67784.0,67781.0,0.002]
[1721596256568,2.39622743,67784.0,67783.0,0.004207]
[1721596256773,2.29622743,67784.0,67783.0,0.004207]
[1721596257182,2.34622743,67784.0,67783.0,0.004207]
[1721596257386,2.30122743,67784.0,67783.0,0.004207]
[1721596257874,2.29322743,67784.0,67783.0,0.004207]
[1721596258084,2.30722743,67784.0,67783.0,0.004207]
[1721596258290,2.17426478,67784.0,67783.0,0.004207]
[1721596258699,1.82932396,67784.0,67783.0,0.004207]
[1721596258903,1.87704543,67784.0,67783.0,0.004207]
[1721596259108,1.61385861,67784.0,67783.0,0.004207]
[1721596259309,0.5144377,67784.0,67783.0,0.142307]
[1721596259689,0.8094917,67784.0,67783.0,0.142307]
[1721596260044,0.7954917,67784.0,67783.0,0.142307]
[1721596260405,0.85326669,67784.0,67783.0,0.142307]
[1721596260936,0.82526669,67784.0,67783.0,0.142307]
[1721596261204,0.7814917,67784.0,67783.0,0.142307]
[1721596261400,0.84228956,67784.0,67783.0,0.142307]
[1721596261617,0.4894377,67784.0,67783.0,0.14242018]
[1721596261771,0.4864377,67784.0,67783.0,0.14242018]
[1721596261973,0.4874377,67784.0,67783.0,0.14242018]
[1721596262579,0.0468567,67784.0,67783.0,0.14242018]
[1721596262963,0.0448567,67784.0,67783.0,0.14242018]
[1721596263190,0.1913837,67784.0,67783.0,0.14242018]
[1721596263652,0.1943837,67784.0,67783.0,0.14242018]
[1721596264104,0.1913837,67784.0,67783.0,0.14242018]
[1721596264513,0.0448567,67784.0,67783.0,0.14342018]
[1721596264896,0.1933837,67784.0,67783.0,0.14342018]
[1721596265356,0.0458567,67784.0,67783.0,0.14342018]
[1721596265751,0.0458567,67784.0,67783.0,0.29044009]
[1721596267543,0.295011,67795.0,67783.0,0.29044009]
[1721596267544,0.04378167,67796.0,67795.0,0.00011318]
[1721596267745,0.10945417,67801.0,67783.0,0.15222691]
[1721596267746,0.29498,67801.0,67799.0,0.00011318]
[1721596267948,0.44247,67801.0,67800.0,0.1425]
[1721596268427,0.73745,67801.0,67800.0,0.1425]
[1721596268657,0.73745,67801.0,67784.0,0.14701991]
[1721596268658,0.14751,67792.0,67791.0,0.0776]
[1721596268866,0.44253,67792.0,67791.0,0.0776]
[1721596269033,0.73755,67792.0,67791.0,0.0776]
[1721596269413,1.03257,67792.0,67791.0,0.0776]
[1721596269635,0.78130481,67792.0,67791.0,0.0776]
[1721596269809,1.07632481,67792.0,67791.0,0.0776]
[1721596270010,1.07631708,67792.0,67791.0,0.0776]
[1721596270276,0.73755,67792.0,67791.0,0.0776]
[1721596270444,0.78129658,67792.0,67791.0,0.0776]
[1721596271007,0.78529658,67792.0,67791.0,0.0776]
[1721596271481,2.78829658,67792.0,67791.0,0.0776]
[1721596271622,2.78129658,67792.0,67791.0,0.0776]
[1721596272025,2.78829658,67792.0,67791.0,0.0776]
[1721596272215,3.08031658,67792.0,67791.0,0.0776]
[1721596272418,3.08131658,67792.0,67791.0,0.0776]
[1721596272620,3.03757,67792.0,67791.0,0.0776]
[1721596272835,3.03757,67792.0,67783.0,0.004207]
[1721596272836,0.295046,67786.0,67783.0,0.004207]
[1721596273049,0.442581,67784.0,67783.0,0.004207]
[1721596273272,0.88465491,67784.0,67783.0,0.004207]
[1721596273496,1.22342794,67784.0,67783.0,0.004207]
[1721596273713,1.17970891,67784.0,67783.0,0.004207]
[1721596275022,1.18070891,67784.0,67783.0,0.009207]
[1721596275429,1.18170891,67784.0,67783.0,0.016207]
[1721596275639,1.18070891,67784.0,67783.0,0.011207]
[1721596275873,1.17970891,67784.0,67783.0,0.004207]
[1721596276114,1.18070891,67784.0,67783.0,0.010207]
[1721596276318,1.07740754,67784.0,67783.0,0.010207]
[1721596276731,1.07740635,67784.0,67783.0,0.010207]
[1721596277075,1.07740635,67784.0,67783.0,0.015207]
[1721596277458,1.033689,67784.0,67783.0,0.015207]
[1721596277663,1.034529,67784.0,67783.0,0.015207]
[1721596278049,1.18154891,67784.0,67783.0,0.015207]
[1721596278286,1.47660291,67784.0,67783.0,0.015207]
[1721596278512,1.6338097,67784.0,67783.0,0.015207]
[1721596278913,1.52451631,67784.0,67783.0,0.015207]
[1721596279040,1.52451631,67784.0,67783.0,0.010207]
[1721596279446,1.52451631,67784.0,67783.0,0.004207]
[1721596279447,1.62351631,67784.0,67783.0,0.004207]
[1721596279649,1.83436578,67784.0,67783.0,0.005207]
[1721596279877,2.3618882,67784.0,67783.0,0.005207]
[1721596280078,1.91987155,67784.0,67783.0,0.005207]
[1721596280275,1.96672858,67784.0,67783.0,0.005207]
[1721596280460,2.26778258,67784.0,67783.0,0.006207]
[1721596280948,1.97272858,67784.0,67783.0,0.006207]
[1721596281157,2.62304523,67784.0,67783.0,0.004207]
[1721596281330,2.62304523,67784.0,67783.0,0.005207]
[1721596281331,2.70420577,67784.0,67783.0,0.005207]
[1721596281534,2.73120577,67784.0,67783.0,0.006207]
[1721596281769,2.71820577,67784.0,67783.0,0.005207]
[1721596281947,2.57124312,67784.0,67783.0,0.005207]
[1721596282150,2.58524312,67784.0,67783.0,0.005207]
[1721596282353,2.45386478,67784.0,67783.0,0.005207]
[1721596282558,2.46210789,67784.0,67783.0,0.005207]
[1721596282756,2.51210789,67784.0,67783.0,0.005207]
[1721596283261,2.16705389,67784.0,67783.0,0.005207]
[1721596283473,1.77545389,67784.0,67783.0,0.005207]
[1721596283692,1.72859686,67784.0,67783.0,0.005207]
[1721596283886,1.67871004,67784.0,67783.0,0.067407]
[1721596284117,1.72859686,67784.0,67783.0,0.005207]
[1721596285366,1.70964624,67784.0,67783.0,0.005207]
[1721596285540,1.67839592,67784.0,67783.0,0.005207]
[1721596286036,1.65975942,67784.0,67783.0,0.005207]
[1721596286523,1.76897907,67784.0,67783.0,0.005207]
[1721596286736,1.67828711,67784.0,67783.0,0.005207]
[1721596288395,1.67829788,67784.0,67783.0,0.005207]
[1721596288795,1.65975942,67784.0,67783.0,0.005207]
[1721596289005,1.67829847,67784.0,67783.0,0.005207]
[1721596290118,1.74713557,67784.0,67783.0,0.146807]
[1721596290300,1.65975942,67784.0,67783.0,0.146807]
[1721596290911,1.76898982,67784.0,67783.0,0.146807]
[1721596291082,1.47393582,67784.0,67783.0,0.146807]
[1721596291304,1.45208833,67784.0,67783.0,0.146807]
[1721596291486,1.7690125,67784.0,67783.0,0.146807]
[1721596291695,1.65975942,67784.0,67783.0,0.146807]
[1721596294083,1.7690232,67784.0,67783.0,0.146807]
[1721596294282,1.25646231,67784.0,67783.0,0.146807]
[1721596294695,1.29596544,67784.0,67783.0,0.146807]
[1721596296218,0.85389153,67784.0,67783.0,0.146807]
[1721596296405,0.766475,67784.0,67783.0,0.146807]
[1721596297031,0.752475,67784.0,67783.0,0.145807]
[1721596297590,0.766475,67784.0,67783.0,0.146807]
[1721596297809,0.752475,67784.0,67783.0,0.145807]
[1721596297991,0.443421,67784.0,67783.0,0.145807]
[1721596298212,0.155367,67784.0,67783.0,0.14692018]
[1721596298664,0.443421,67784.0,67783.0,0.14592018]
[1721596298894,0.148367,67784.0,67783.0,0.14592018]
[1721596299309,0.00084,67784.0,67783.0,0.14792018]
[1721596299512,0.00084,67784.0,67783.0,0.14592018]
[1721596300182,0.00184,67784.0,67783.0,0.14592018]
[1721596300814,0.00184,67784.0,67783.0,0.14892018]
[1721596300815,0.00084,67784.0,67783.0,0.14892018]
[1721596301020,0.148367,67784.0,67783.0,0.14992018]
[1721596302959,0.738475,67784.0,67783.0,0.149807]
[1721596303376,0.738475,67784.0,67783.0,0.14992018]
[1721596303615,0.738475,67784.0,67783.0,0.149807]
[1721596304019,0.738475,67784.0,67783.0,0.14992018]
[1721596304229,0.738475,67784.0,67783.0,0.149807]
[1721596306868,0.443421,67784.0,67783.0,0.14992018]
[1721596307020,0.443421,67784.0,67773.0,0.009207]
[1721596307021,1.84807982,67775.0,67773.0,0.009207]
[1721596307229,1.84807982,67775.0,67774.0,0.14701991]
[1721596308677,1.84907982,67775.0,67774.0,0.15401991]
[1721596308845,1.85007982,67775.0,67774.0,0.16101991]
[1721596310214,1.85007982,67775.0,67774.0,0.30091991]
[1721596310499,2.14517382,67775.0,67774.0,0.1539]
[1721596310702,2.58781482,67775.0,67774.0,0.1539]
[1721596310900,2.88290882,67775.0,67774.0,0.1539]
[1721596312080,2.58781482,67775.0,67774.0,0.1539]
[1721596312861,2.88290882,67775.0,67774.0,0.1539]
[1721596314525,2.58781482,67775.0,67774.0,0.1539]
[1721596316734,2.88290882,67775.0,67774.0,0.014]
[1721596317142,2.58781482,67775.0,67774.0,0.014]
[1721596319207,2.88290882,67775.0,67774.0,0.014]
[1721596319411,2.58781482,67775.0,67774.0,0.014]
[1721596319612,2.88290882,67775.0,67774.0,0.014]
[1721596321973,2.96240882,67775.0,67774.0,0.014]
[1721596322151,3.00617542,67775.0,67774.0,0.014]
[1721596322372,2.92667542,67775.0,67774.0,0.014]
[1721596322961,2.94855873,67775.0,67774.0,0.014]
[1721596323293,3.00341554,67775.0,67774.0,0.014]
[1721596323492,3.080073,67775.0,67774.0,0.014]
[1721596323901,1.032843,67774.0,67773.0,0.009207]
[1721596324032,1.09847298,67774.0,67773.0,0.009207]
[1721596324691,1.09847153,67774.0,67773.0,0.009207]
[1721596325305,1.09947153,67774.0,67773.0,0.013207]
[1721596325446,1.08177101,67774.0,67773.0,0.013207]
[1721596325647,1.09946357,67774.0,67773.0,0.013207]
[1721596325893,1.09946357,67774.0,67773.0,0.018207]
[1721596325894,1.0817705,67774.0,67773.0,0.018207]
[1721596326126,1.09946482,67774.0,67773.0,0.018207]
[1721596326659,1.39456282,67774.0,67773.0,0.018207]
[1721596326874,1.6586039,67774.0,67773.0,0.018207]
[1721596327112,1.5238899,67774.0,67773.0,0.018207]
[1721596327315,1.8984879,67774.0,67773.0,0.018207]
[1721596327514,1.6033899,67774.0,67773.0,0.018207]
[1721596327708,1.39711643,67774.0,67773.0,0.018207]
[1721596328308,1.48620238,67774.0,67773.0,0.018207]
[1721596328473,1.37686999,67774.0,67773.0,0.018207]
[1721596329291,1.328941,67774.0,67773.0,0.018207]
[1721596329764,1.41640599,67774.0,67773.0,0.018207]
[1721596329944,1.033843,67774.0,67773.0,0.018207]
[1721596330354,0.738745,67774.0,67773.0,0.096107]
[1721596330693,0.738745,67774.0,67773.0,0.156707]
[1721596330694,0.443647,67774.0,67773.0,0.156707]
[1721596330823,0.78247988,67774.0,67773.0,0.156707]
[1721596331032,0.738745,67774.0,67773.0,0.156707]
[1721596332508,0.78248029,67774.0,67773.0,0.156707]
[1721596332713,0.78248029,67774.0,67773.0,0.018207]
[1721596332938,1.07757829,67774.0,67773.0,0.018207]
[1721596333151,1.07752931,67774.0,67773.0,0.018207]
[1721596333761,1.07750639,67774.0,67773.0,0.018207]
[1721596333963,1.033843,67774.0,67773.0,0.018207]
[1721596334861,0.738745,67774.0,67773.0,0.018207]
[1721596334990,0.78240762,67774.0,67773.0,0.018207]
[1721596335190,1.07750562,67774.0,67773.0,0.018207]
[1721596335555,1.033843,67774.0,67773.0,0.018207]
[1721596336348,1.37189422,67774.0,67773.0,0.018207]
[1721596336544,1.48105566,67774.0,67773.0,0.018207]
[1721596336745,1.77615366,67774.0,67773.0,0.018207]
[1721596336972,1.66699222,67774.0,67773.0,0.018207]
[1721596337177,1.48105838,67774.0,67773.0,0.018207]
[1721596337776,1.77615638,67774.0,67773.0,0.018207]
[1721596338579,1.33785838,67774.0,67773.0,0.018207]
[1721596338791,1.22869422,67774.0,67773.0,0.018207]
[1721596338997,1.31597314,67774.0,67773.0,0.018207]
[1721596339396,1.22869422,67774.0,67773.0,0.018207]
[1721596339600,1.52379222,67774.0,67773.0,0.018207]
[1721596340070,1.66699222,67774.0,67773.0,0.018207]
[1721596340721,1.77599682,67774.0,67773.0,0.018207]
[1721596340876,1.66699222,67774.0,67773.0,0.018207]
[1721596342243,1.52379222,67774.0,67773.0,0.018207]
[1721596342447,1.22869422,67774.0,67773.0,0.078807]
[1721596342562,1.22869422,67774.0,67773.0,0.018207]
[1721596342759,1.66699222,67774.0,67773.0,0.018207]
[1721596343255,2.86085182,67765.0,67764.0,9e-05]
[1721596344587,2.86185182,67765.0,67764.0,0.00509]
[1721596344991,2.86285182,67765.0,67764.0,0.00309]
[1721596348158,2.86285182,67765.0,67752.0,0.0246039]
[1721596348159,0.33024661,67738.0,67736.0,0.1]
[1721596348352,0.33024661,67738.0,67737.0,0.54419226]
[1721596348617,0.33024661,67738.0,67737.0,0.56719226]
[1721596348815,0.33024661,67738.0,67737.0,0.57567158]
[1721596349453,0.33024661,67738.0,67737.0,0.57567668]
[1721596349724,0.33124661,67738.0,67737.0,0.38679923]
[1721596349923,0.33124661,67738.0,67737.0,0.57067668]
[1721596350399,0.33124661,67738.0,67737.0,0.67067668]
[1721596351011,0.33224661,67738.0,67737.0,0.67067668]
[1721596351214,0.33224661,67738.0,67737.0,0.80857668]
[1721596352477,0.33224661,67738.0,67737.0,0.70857668]
[1721596353477,0.33224661,67738.0,67737.0,0.69857668]
[1721596353478,0.33124661,67738.0,67737.0,0.69857668]
[1721596353827,0.33224661,67738.0,67737.0,0.69857668]
[1721596354057,0.33124661,67738.0,67737.0,0.69857668]
[1721596354269,0.33024661,67738.0,67737.0,0.69857668]
[1721596354481,0.33124661,67738.0,67737.0,0.69857668]
[1721596355096,0.33224661,67738.0,67737.0,0.69857668]
[1721596355715,0.33224661,67738.0,67737.0,0.69857881]
[1721596358771,0.33224661,67738.0,67737.0,0.51469923]
[1721596359225,0.33224661,67738.0,67737.0,0.69858364]
[1721596359465,0.33224661,67738.0,67737.0,0.69858237]
[1721596360449,0.33224661,67738.0,67737.0,0.57068237]
[1721596361909,0.33224661,67738.0,67737.0,0.57068348]
[1721596365137,0.33224661,67738.0,67737.0,0.57068512]
[1721596366411,0.33197029,67738.0,67737.0,0.57068512]
[1721596368177,0.33197029,67738.0,67737.0,0.38679923]
[1721596368405,0.33197029,67738.0,67737.0,0.57068528]
[1721596368621,0.33197029,67738.0,67737.0,0.57388111]
[1721596368832,0.33197029,67738.0,67737.0,0.57388109]
[1721596371272,0.33197029,67738.0,67737.0,0.57388157]
[1721596371491,0.41369884,67754.0,67737.0,0.57388157]
[1721596371709,0.147599,67751.0,67749.0,0.0854]
[1721596371914,0.147599,67751.0,67750.0,0.002794]
[1721596372320,0.147598,67752.0,67750.0,0.002794]
[1721596373201,0.147598,67752.0,67749.0,0.083194]
[1721596373429,0.001,67751.0,67749.0,0.083194]
[1721596373635,0.001,67752.0,67749.0,0.083194]
[1721596374063,0.149597,67752.0,67749.0,0.083194]
[1721596374358,0.148597,67752.0,67749.0,0.083194]
[1721596374522,0.148597,67752.0,67750.0,0.12258699]
[1721596374725,0.148597,67752.0,67749.0,0.083194]
[1721596375289,0.148597,67752.0,67750.0,0.12258699]
[1721596375551,0.148597,67752.0,67749.0,0.083194]
[1721596375742,0.148597,67752.0,67750.0,0.12258699]
[1721596375899,0.149597,67752.0,67749.0,0.083194]
[1721596376106,0.149597,67752.0,67750.0,0.12258699]
[1721596376310,0.149597,67752.0,67749.0,0.083194]
[1721596376511,0.002,67752.0,67750.0,0.12258704]
[1721596376762,0.148597,67752.0,67749.0,0.083194]
[1721596376965,0.148597,67752.0,67750.0,0.12258702]
[1721596377135,0.147597,67752.0,67749.0,0.09169897]
[1721596377341,0.148597,67752.0,67749.0,0.09169897]
[1721596377561,0.001,67752.0,67750.0,0.12258703]
[1721596377762,0.001,67752.0,67749.0,0.09169897]
[1721596377965,0.001,67752.0,67750.0,0.12258678]
[1721596378140,0.001,67752.0,67749.0,0.09169897]
[1721596378325,0.001,67752.0,67750.0,0.12258676]
[1721596378707,0.001,67752.0,67751.0,0.12258676]
[1721596378911,0.147594,67753.0,67751.0,0.12258676]
[1721596379056,0.001,67752.0,67749.0,0.09169897]
[1721596379258,0.001,67752.0,67750.0,0.12258676]
[1721596379480,0.001,67752.0,67751.0,0.12258676]
[1721596380513,0.001,67752.0,67749.0,0.00850497]
[1721596380714,0.002,67752.0,67750.0,0.12258699]
[1721596380913,0.002,67752.0,67749.0,0.0854]
[1721596380914,0.003,67752.0,67749.0,0.0854]
[1721596381112,0.003,67752.0,67750.0,0.12258731]
[1721596381331,0.003,67752.0,67749.0,0.0854]
[1721596381534,0.003,67752.0,67750.0,0.12258731]
[1721596381736,0.003,67752.0,67749.0,0.0854]
[1721596381964,0.003,67752.0,67750.0,0.12258731]
[1721596382110,0.147595,67753.0,67749.0,0.0854]
[1721596382306,0.147595,67753.0,67750.0,0.12258731]
[1721596382522,0.002,67752.0,67749.0,0.0854]
[1721596382770,0.001,67752.0,67750.0,0.12258732]
[1721596383109,0.001,67752.0,67749.0,0.0854]
[1721596383257,0.148598,67752.0,67750.0,0.12258733]
[1721596383458,0.148598,67752.0,67748.0,0.07179631]
[1721596383670,0.148598,67752.0,67749.0,0.12258743]
[1721596383840,0.147598,67752.0,67750.0,0.12258743]
[1721596384052,0.002,67753.0,67748.0,0.07179631]
[1721596384053,0.147599,67751.0,67748.0,0.07179631]
[1721596384250,0.147599,67751.0,67749.0,0.12258743]
[1721596384451,0.147597,67752.0,67750.0,0.12258743]
[1721596384651,0.147597,67752.0,67748.0,0.07179631]
[1721596384879,0.147597,67752.0,67749.0,0.12258743]
[1721596385077,0.147599,67751.0,67750.0,0.12258743]
[1721596385281,0.442797,67751.0,67750.0,0.12258743]
[1721596385455,0.147602,67750.0,67746.0,0.00864486]
[1721596385668,0.147602,67750.0,67747.0,0.12259054]
[1721596385873,0.295198,67751.0,67748.0,0.12259054]
[1721596386051,0.295198,67751.0,67745.0,0.0624]
[1721596386052,0.147603,67749.0,67745.0,0.0624]
[1721596386254,0.296198,67751.0,67746.0,0.12259032]
[1721596386457,0.297198,67751.0,67745.0,0.07065683]
[1721596386661,0.148601,67751.0,67747.0,0.0854]
[1721596386910,0.002,67751.0,67748.0,0.1225903]
[1721596387111,0.150599,67751.0,67749.0,0.1225903]
[1721596387320,0.149599,67751.0,67747.0,0.0854]
[1721596387523,0.150599,67751.0,67748.0,0.12258967]
[1721596387729,0.147601,67750.0,67749.0,0.12258967]
[1721596389180,0.001,67751.0,67749.0,0.12258966]
[1721596389331,0.147597,67752.0,67747.0,0.0854]
[1721596389660,0.001,67750.0,67748.0,0.12258966]
[1721596389908,0.001,67750.0,67749.0,0.12258966]
[1721596390443,0.147597,67752.0,67749.0,0.12258966]
[1721596390668,0.148597,67752.0,67747.0,0.0854]
[1721596390836,0.148597,67752.0,67748.0,0.12258964]
[1721596391036,0.001,67752.0,67749.0,0.12258964]
[1721596391234,0.001,67752.0,67750.0,0.20798964]
[1721596391431,0.148597,67752.0,67750.0,0.0854]
[1721596391898,0.149597,67752.0,67750.0,0.0854]
[1721596392100,0.148597,67752.0,67750.0,0.0854]
[1721596392311,0.147597,67752.0,67750.0,0.0854]
[1721596392519,0.147594,67754.0,67750.0,0.0854]
[1721596392721,0.001,67752.0,67750.0,0.0854]
[1721596392931,0.002,67752.0,67750.0,0.0854]
[1721596393138,0.149597,67752.0,67750.0,0.0804]
[1721596393578,0.148597,67752.0,67750.0,0.0804]
[1721596394017,0.001,67752.0,67750.0,0.0804]
[1721596394236,0.001,67752.0,67751.0,0.41380642]
[1721596395146,0.001,67754.0,67752.0,0.1442]
[1721596395349,0.001,67754.0,67753.0,0.49920642]
[1721596395559,0.147567,67766.0,67754.0,0.066]
[1721596395786,0.147567,67766.0,67764.0,0.066]
[1721596395993,0.04367222,67769.0,67764.0,0.066]
[1721596395994,0.04367489,67769.0,67764.0,0.066]
[1721596396197,0.295124,67768.0,67764.0,0.066]
[1721596396404,0.04367489,67769.0,67764.0,0.066]
[1721596396405,0.29512,67769.0,67764.0,0.066]
[1721596396609,0.147567,67766.0,67764.0,0.066]
[1721596397396,0.07348942,67765.0,67760.0,0.066]
[1721596397588,0.147582,67759.0,67753.0,0.0642]
[1721596397818,0.147584,67758.0,67754.0,0.12257494]
[1721596398037,0.29515,67762.0,67755.0,0.1225758]
[1721596398246,0.147582,67759.0,67757.0,0.0854]
[1721596398458,0.147578,67761.0,67757.0,0.0854]
[1721596398666,0.29515,67762.0,67757.0,0.0854]
[1721596398882,0.147577,67762.0,67757.0,0.0854]
[1721596399080,0.147578,67761.0,67757.0,0.0854]
[1721596399495,0.14757,67765.0,67758.0,0.29291991]
[1721596399905,0.147574,67763.0,67758.0,0.21121991]
[1721596400105,0.147572,67764.0,67758.0,0.21121991]
[1721596401482,0.147571,67764.0,67758.0,0.21121991]
[1721596401690,0.14757,67765.0,67758.0,0.21121991]
[1721596401885,0.14757,67765.0,67760.0,0.0854]
[1721596402261,0.147569,67765.0,67760.0,0.0854]
[1721596402469,0.001,67764.0,67760.0,0.0854]
[1721596402888,0.147569,67765.0,67760.0,0.0854]
[1721596403297,0.147571,67764.0,67760.0,0.0934]
[1721596403492,0.147571,67764.0,67760.0,0.0884]
[1721596404490,0.147571,67764.0,67760.0,0.0854]
[1721596404726,0.05,67759.0,67749.0,0.0654]
[1721596404927,0.0822,67754.0,67750.0,0.26959305]
[1721596405126,0.0822,67754.0,67750.0,0.0854]
[1721596405127,0.147597,67752.0,67750.0,0.0854]
[1721596405501,0.147599,67751.0,67750.0,0.0854]
[1721596407561,0.147599,67751.0,67750.0,0.086324]
[1721596407772,0.148599,67751.0,67750.0,0.096324]
[1721596408419,0.148599,67751.0,67750.0,0.097324]
[1721596408420,0.147599,67751.0,67750.0,0.097324]
[1721596408634,0.147599,67751.0,67750.0,0.096324]
[1721596408840,0.148599,67751.0,67750.0,0.096324]
[1721596409045,0.149599,67751.0,67750.0,0.107324]
[1721596410466,2.002,67751.0,67750.0,0.107324]
[1721596411141,2.002,67751.0,67750.0,0.10687108]
[1721596412494,2.149599,67751.0,67750.0,0.10687108]
[1721596412712,2.002,67751.0,67750.0,0.10687108]
[1721596412896,2.002,67751.0,67750.0,0.40229099]
[1721596413102,2.002,67751.0,67750.0,0.54786918]
[1721596413526,2.002,67751.0,67750.0,0.4399221]
[1721596413989,2.002,67751.0,67750.0,0.41134075]
[1721596414341,2.002,67751.0,67750.0,0.53392615]
[1721596414549,2.002,67751.0,67750.0,0.36552615]
[1721596414753,2.002,67751.0,67750.0,0.021924]
[1721596414963,2.149599,67751.0,67750.0,0.021924]
[1721596415660,2.002,67751.0,67750.0,0.021924]
[1721596415879,2.149599,67751.0,67750.0,0.021924]
[1721596416230,3.312793,67751.0,67750.0,0.021924]
[1721596416645,3.35646283,67751.0,67750.0,0.021924]
[1721596416852,3.312793,67751.0,67750.0,0.021924]
[1721596417295,3.311793,67751.0,67750.0,0.011924]
[1721596417498,3.37726513,67751.0,67750.0,0.011924]
[1721596418880,3.37626513,67751.0,67750.0,0.000924]
[1721596419083,3.225393,67751.0,67750.0,0.000924]
[1721596419585,3.225393,67751.0,67750.0,0.003924]
[1721596419867,3.2690052,67751.0,67750.0,0.003924]
[1721596420085,3.310793,67751.0,67750.0,0.003924]
[1721596420309,3.310793,67751.0,67750.0,0.000924]
[1721596420497,2.880195,67751.0,67750.0,0.000924]
[1721596421147,2.935195,67751.0,67750.0,0.000924]
[1721596421346,2.887095,67751.0,67750.0,0.000924]
[1721596421519,2.932095,67751.0,67750.0,0.000924]
[1721596422073,2.937095,67751.0,67750.0,0.000924]
[1721596422198,2.940095,67751.0,67750.0,0.000924]
[1721596423798,3.72110579,67751.0,67750.0,0.000924]
[1721596423990,4.22951138,67751.0,67750.0,0.000924]
[1721596424129,4.16267008,67751.0,67750.0,0.000924]
[1721596424728,4.31327008,67751.0,67750.0,0.000924]
[1721596424955,4.33927008,67751.0,67750.0,0.001924]
[1721596425158,4.48623273,67751.0,67750.0,0.001924]
[1721596425364,3.86762341,67751.0,67750.0,0.002924]
[1721596425686,3.86591091,67751.0,67750.0,0.002924]
[1721596425885,3.87091091,67751.0,67750.0,0.003924]
[1721596426200,3.86091091,67751.0,67750.0,0.001924]
[1721596426351,3.86091091,67751.0,67750.0,0.000924]
[1721596426352,3.76951091,67751.0,67750.0,0.000924]
[1721596426559,3.86160455,67751.0,67750.0,0.001924]
[1721596426789,3.86160455,67751.0,67750.0,0.002924]
[1721596426790,3.85083307,67751.0,67750.0,0.002924]
[1721596426945,3.78551091,67751.0,67750.0,0.002924]
[1721596427151,4.01706614,67751.0,67750.0,0.001924]
[1721596427369,4.01706614,67751.0,67737.0,0.000924]
[1721596427370,0.345255,67738.0,67737.0,0.000924]
[1721596427575,1.74810133,67738.0,67737.0,0.000924]
[1721596427778,2.40270497,67738.0,67737.0,0.000924]
[1721596428001,2.51444777,67738.0,67737.0,0.000924]
[1721596428203,2.55252348,67738.0,67737.0,0.000924]
[1721596428481,2.52770485,67738.0,67737.0,0.000924]
[1721596428893,1.69574278,67738.0,67737.0,0.000924]
[1721596429098,1.69374278,67738.0,67737.0,0.000924]
[1721596429303,1.65161191,67738.0,67737.0,0.000924]
[1721596429417,1.483064,67732.0,67731.0,0.002]
[1721596429626,1.95053598,67732.0,67731.0,0.002]
[1721596429858,2.18578891,67732.0,67731.0,0.002]
[1721596430055,2.22852387,67732.0,67731.0,0.002]
[1721596430253,2.18695447,67732.0,67731.0,0.002]
[1721596430522,1.89167347,67732.0,67731.0,0.002]
[1721596430721,2.10537347,67732.0,67731.0,0.002]
[1721596430872,2.11937347,67732.0,67731.0,0.003]
[1721596431289,2.20123598,67732.0,67731.0,0.003]
[1721596431685,2.05427333,67732.0,67731.0,0.003]
[1721596432038,2.20987333,67732.0,67731.0,0.003]
[1721596432342,2.27387333,67732.0,67731.0,0.003]
[1721596432550,2.56915433,67732.0,67731.0,0.003]
[1721596432750,2.27387333,67732.0,67731.0,0.003]
[1721596432978,2.42083598,67732.0,67731.0,0.003]
[1721596433165,1.87724203,67697.0,67696.0,0.474007]
[1721596433364,1.87724203,67697.0,67681.0,0.2157]
[1721596433522,1.87724203,67697.0,67691.0,0.002]
[1721596433923,0.002794,67696.0,67691.0,0.002]
[1721596434159,1.87724203,67697.0,67691.0,0.002]
[1721596434160,1.87724203,67697.0,67695.0,0.08466404]
[1721596434326,1.87724203,67697.0,67696.0,0.15301991]
[1721596434327,1.87824203,67697.0,67696.0,0.15301991]
[1721596435414,1.87924203,67697.0,67696.0,0.15301991]
[1721596435814,1.87724203,67697.0,67696.0,0.14701991]
[1721596435989,1.87824203,67697.0,67696.0,0.14701991]
[1721596436350,1.87824203,67697.0,67696.0,0.20981991]
[1721596437078,1.87824203,67697.0,67696.0,0.14701991]
[1721596437306,1.87824203,67697.0,67696.0,0.0628]
[1721596437725,1.87824203,67697.0,67696.0,0.0668]
[1721596437925,1.87924203,67697.0,67696.0,0.0708]
[1721596438547,1.88024203,67697.0,67696.0,0.22181991]
[1721596439170,1.87924203,67697.0,67696.0,0.21781991]
[1721596439369,1.87824203,67697.0,67696.0,0.0678]
[1721596439574,1.87924203,67697.0,67696.0,0.0718]
[1721596439779,1.87924203,67697.0,67696.0,0.21881991]
[1721596439989,1.87824203,67697.0,67696.0,0.21474391]
[1721596440617,1.87924203,67697.0,67696.0,0.21974391]
[1721596440822,1.87824203,67697.0,67696.0,0.21574391]
[1721596441181,1.87824203,67697.0,67696.0,0.22074391]
[1721596441182,1.87924203,67697.0,67696.0,0.22074391]
[1721596441383,1.87824203,67697.0,67696.0,0.21574391]
[1721596441786,1.87824203,67697.0,67696.0,0.22074391]
[1721596441787,1.87924203,67697.0,67696.0,0.22074391]
[1721596442210,1.87824203,67697.0,67696.0,0.21574391]
[1721596442389,1.87924203,67697.0,67696.0,0.22074391]
[1721596442999,1.87824203,67697.0,67696.0,0.21574391]
[1721596443192,0.0827,67696.0,67691.0,0.002]
[1721596443441,1.10758142,67692.0,67691.0,0.002]
[1721596443632,1.15758142,67692.0,67691.0,0.002]
[1721596443831,0.86212642,67692.0,67691.0,0.002]
[1721596444195,1.15758142,67692.0,67691.0,0.002]
[1721596444371,1.15758142,67692.0,67691.0,0.007]
[1721596444372,1.31890133,67692.0,67691.0,0.007]
[1721596444587,1.45160133,67692.0,67691.0,0.007]
[1721596445036,1.31158142,67692.0,67691.0,0.008]
[1721596445224,1.30458142,67692.0,67691.0,0.002]